bitfinex/quotes_ETHUSD_20220215
["timestamp","ask_amount","ask_price","bid_price","bid_amount"]
[1644888982706,0.19513269,2983.6,2983.3,1.15792388]
[1644888982707,0.14513269,2983.6,2983.3,1.15792388]
[1644888982907,0.14513269,2983.6,2983.1,4.91953135]
[1644888983108,0.83834,2983.5,2983.1,4.91953135]
[1644888983310,0.83834,2983.5,2982.5,0.8253]
[1644888983512,0.14513269,2983.6,2983.4,6.07745523]
[1644888983711,0.14513269,2983.6,2983.1,4.91953135]
[1644888983908,0.14513269,2983.6,2983.0,1.15792388]
[1644888983909,0.00730369,2983.4,2983.2,4.91953135]
[1644888984709,0.3165,2983.5,2983.2,4.91953135]
[1644888985012,0.3165,2983.5,2983.4,6.07745523]
[1644888985208,0.25,2984.0,2983.4,6.07745523]
[1644888985470,0.03273113,2984.8,2983.9,6.07745523]
[1644888985672,0.02920179,2984.8,2984.7,6.07745523]
[1644888985871,0.02920179,2984.8,2984.7,6.99465523]
[1644888986070,0.25352934,2985.3,2984.7,6.99465523]
[1644888986071,0.00352934,2985.3,2984.7,6.99465523]
[1644888986271,0.5,2985.7,2985.2,6.07745523]
[1644888986468,0.00352934,2985.6,2985.4,4.91953135]
[1644888986667,0.17610773,2986.8,2985.4,4.91953135]
[1644888986668,0.00352934,2986.7,2985.4,4.91953135]
[1644888986868,1.67545,2985.8,2985.1,4.91953135]
[1644888987068,0.001,2985.7,2985.1,4.91953135]
[1644888987267,0.00452934,2985.7,2985.3,4.91953135]
[1644888987469,0.00452934,2985.7,2985.6,4.91953135]
[1644888987670,0.00352934,2985.9,2985.6,4.91953135]
[1644888987868,0.00732719,2986.2,2985.7,4.91953135]
[1644888988068,0.00732719,2986.2,2985.5,4.91953135]
[1644888988069,0.84499719,2986.2,2985.5,4.91953135]
[1644888988269,0.00352934,2986.1,2985.5,4.91953135]
[1644888988469,0.00352934,2986.1,2985.7,4.91953135]
[1644888988470,0.01085653,2986.1,2985.7,4.91953135]
[1644888988872,0.01085653,2986.1,2985.4,4.91953135]
[1644888989112,0.01085653,2986.1,2985.2,4.91953135]
[1644888989113,0.83767,2985.9,2985.2,4.91953135]
[1644888989312,0.00352934,2985.8,2985.1,4.91953135]
[1644888989513,0.5,2985.6,2985.3,4.66953135]
[1644888989712,0.00352934,2985.5,2984.5,0.95594201]
[1644888989913,0.001,2985.8,2985.4,4.66953135]
[1644888989914,0.00732719,2985.7,2985.4,4.66953135]
[1644888990115,0.00732719,2985.7,2985.0,4.66953135]
[1644888990313,0.00732719,2985.7,2984.9,4.66953135]
[1644888990613,0.83767,2985.9,2984.9,4.66953135]
[1644888990617,0.83767,2985.9,2985.2,4.66953135]
[1644888990814,0.83767,2985.9,2985.1,1.01115986]
[1644888990815,0.00352934,2985.8,2985.1,1.01115986]
[1644888991015,0.001,2986.1,2985.1,1.01115986]
[1644888991016,0.00732719,2985.4,2985.1,1.01115986]
[1644888991213,0.00732719,2985.4,2985.3,5.82745523]
[1644888991814,2.719e-05,2985.4,2985.3,5.77745523]
[1644888992015,0.00352934,2986.3,2985.3,5.77745523]
[1644888992216,0.001,2986.8,2986.2,5.77745523]
[1644888992416,0.01498044,2987.5,2986.7,5.77745523]
[1644888992614,0.00349428,2987.1,2986.4,3.51271119]
[1644888992860,0.01498044,2987.5,2987.1,0.87351274]
[1644888993060,8.044e-05,2987.5,2987.4,5.77745523]
[1644888993260,0.06124,2988.7,2987.4,5.77745523]
[1644888993261,0.06124,2988.7,2987.5,5.8367106]
[1644888993456,0.01221792,2988.9,2987.4,4.32396]
[1644888993457,0.1,2988.8,2987.4,4.32396]
[1644888993659,0.01121792,2988.9,2988.3,4.61953135]
[1644888993660,1.063e-05,2988.9,2988.3,4.61953135]
[1644888993857,0.90928257,2988.7,2987.7,1.15792388]
[1644888994062,0.06126,2989.6,2987.9,4.61953135]
[1644888994063,7.540957,2988.8,2987.9,4.61953135]
[1644888994256,0.00344251,2988.6,2987.9,4.61953135]
[1644888994462,0.00344251,2988.7,2987.7,1.15792388]
[1644888994660,3.59447696,2990.7,2988.6,5.77745523]
[1644888994858,0.0103639,2991.7,2988.6,5.77745523]
[1644888994859,0.00874826,2992.3,2990.6,5.77745523]
[1644888995060,4.30108341,2994.1,2990.6,5.77745523]
[1644888995061,7.26974925,2994.6,2991.2,0.01201336]
[1644888995358,0.71490884,2993.7,2992.8,0.25]
[1644888995520,8.3683974,2995.7,2993.2,5.02086749]
[1644888995521,100.00340817,2994.5,2993.2,5.02086749]
[1644888995665,0.0084074,2995.7,2994.4,1.15792388]
[1644888995864,1.06086566,2996.0,2995.6,4.61953135]
[1644888996063,1.06086566,2996.0,2995.0,0.3146]
[1644888996064,1.63069286,2995.4,2995.0,0.6385]
[1644888996261,1.09455538,2995.3,2995.1,0.406]
[1644888996462,1.09455538,2995.3,2995.2,4.61953135]
[1644888996710,1.09455538,2995.3,2995.1,0.9312]
[1644888996907,1.09455538,2995.3,2995.0,0.3146]
[1644888997105,0.00231165,2995.4,2995.2,2.55159004]
[1644888997305,0.00231165,2995.4,2995.2,1.92141518]
[1644888997506,0.00231165,2995.4,2995.2,0.9797]
[1644888997507,0.01163424,2995.3,2995.2,0.9797]
[1644888997705,0.01163424,2995.3,2995.2,1.92141518]
[1644888997906,0.01163424,2995.3,2994.3,0.1668]
[1644888998109,1.10719315,2994.6,2994.3,0.1668]
[1644888998315,0.01163424,2995.3,2993.8,0.13968741]
[1644888998316,0.02028612,2995.3,2994.6,0.40511378]
[1644888998506,0.02028612,2995.3,2994.7,1.15792388]
[1644888998905,0.02028612,2995.3,2994.6,0.40511378]
[1644888999109,0.02028612,2995.3,2993.4,0.31213007]
[1644888999110,0.02028612,2995.3,2994.0,1.0]
[1644888999310,0.02028612,2995.3,2994.3,1.15792388]
[1644888999311,0.0585222,2995.3,2994.3,1.15792388]
[1644888999508,87.468253,2995.2,2993.7,0.1668]
[1644888999706,87.468253,2995.2,2993.6,21.62883355]
[1644888999708,0.00730895,2995.1,2993.6,21.62883355]
[1644888999911,0.06922228,2995.1,2993.8,1.15792388]
[1644889001858,1.01132729,2994.5,2994.2,5.269918]
[1644889002054,1.01132729,2994.5,2994.0,5.0]
[1644889002055,0.00527116,2994.4,2994.0,5.0]
[1644889002255,0.03571516,2994.9,2994.0,5.0]
[1644889002256,0.00339113,2995.2,2994.5,4.6]
[1644889002457,0.4,2998.0,2994.5,4.6]
[1644889002458,4.176e-05,2994.9,2994.5,4.6]
[1644889002657,4.176e-05,2994.9,2994.3,0.05620606]
[1644889002658,4.176e-05,2994.9,2994.8,21.17792388]
[1644889002856,4.176e-05,2994.9,2994.8,1.86392388]
[1644889003158,4.176e-05,2994.9,2994.8,6.83384188]
[1644889003557,0.01007314,2996.5,2994.9,5.0]
[1644889003758,0.0045183,2997.5,2995.9,1.15792388]
[1644889003759,57.96076429,2997.0,2995.9,1.15792388]
[1644889003961,0.01681772,2996.1,2996.0,4.21099997]
[1644889004233,1.772e-05,2996.1,2996.0,2.21476772]
[1644889004437,1.772e-05,2996.1,2996.0,1.70212385]
[1644889004633,0.04035806,2996.6,2996.0,1.70212385]
[1644889004634,0.01404514,2996.6,2996.0,1.70212385]
[1644889004828,0.01404514,2996.6,2995.2,0.13819997]
[1644889005028,0.01404514,2996.6,2995.5,0.406]
[1644889005228,0.01404514,2996.6,2995.2,0.13819997]
[1644889005433,0.01404514,2996.6,2995.0,1.15792388]
[1644889005728,0.01404514,2996.6,2994.9,0.1668]
[1644889005729,0.00214903,2996.2,2994.0,0.04080432]
[1644889005931,1.09864277,2994.8,2993.9,5.0]
[1644889006129,0.00334096,2994.7,2994.1,5.269918]
[1644889006329,0.00334096,2994.7,2993.7,0.1669]
[1644889006330,0.00334096,2994.7,2994.0,5.269918]
[1644889006529,0.00334096,2994.7,2993.5,0.1668]
[1644889006730,0.00334096,2995.5,2994.1,5.269918]
[1644889006935,0.00334096,2995.5,2993.8,5.0]
[1644889006936,0.00334096,2995.5,2994.2,0.00887444]
[1644889007232,0.26396936,2996.1,2994.3,5.269918]
[1644889007429,0.26396936,2996.1,2994.4,3.5]
[1644889007630,0.00334096,2996.0,2994.3,5.269918]
[1644889007864,0.00334096,2996.0,2994.4,4.32203]
[1644889008064,0.00334096,2996.0,2994.8,0.00887281]
[1644889008463,0.5,2995.7,2994.9,5.269918]
[1644889008664,0.01396936,2996.1,2995.0,3.5]
[1644889008866,0.00334096,2995.6,2995.1,0.1668]
[1644889009064,0.01396936,2996.1,2995.1,5.436718]
[1644889009264,0.25,2996.9,2995.2,0.01284414]
[1644889009466,0.00332426,2996.4,2995.2,5.269918]
[1644889009763,5.0,2996.4,2994.8,3.50887281]
[1644889010063,0.00332426,2996.3,2994.8,0.00887281]
[1644889010263,1.05189883,2995.5,2994.8,0.41854961]
[1644889010465,0.00332426,2995.4,2994.8,0.41854961]
[1644889010662,0.00211228,2995.7,2994.8,0.406]
[1644889010862,0.00211228,2995.7,2994.3,3.5]
[1644889011064,0.00211228,2995.7,2994.4,3.5]
[1644889011264,0.00211228,2995.7,2994.2,5.5859521]
[1644889011466,0.87962165,2995.2,2994.2,5.3359521]
[1644889011714,0.00332426,2995.1,2994.2,0.1668]
[1644889012114,0.00332426,2995.1,2994.2,0.10455231]
[1644889012315,0.00332426,2995.1,2993.5,0.1668]
[1644889012515,1.05813471,2993.1,2993.0,0.1668]
[1644889012715,0.406,2995.0,2993.1,2.2686495]
[1644889012716,0.25,2994.1,2993.1,2.2686495]
[1644889012913,0.00332426,2994.0,2993.1,2.2686495]
[1644889013118,0.00332426,2994.9,2993.1,2.2686495]
[1644889013316,0.00332426,2994.9,2993.2,3.5]
[1644889013317,0.25,2994.8,2993.2,3.5]
[1644889013518,0.91013809,2994.0,2993.2,3.5]
[1644889013715,0.00332426,2994.8,2993.2,4.4735949]
[1644889014018,0.00332426,2994.8,2993.3,0.1668]
[1644889014218,0.00703569,2995.0,2993.5,0.01099469]
[1644889014818,0.1758721,2995.4,2993.6,3.4]
[1644889014819,0.30303205,2995.4,2993.6,3.4]
[1644889015020,0.00330764,2995.0,2993.7,4.51202232]
[1644889015219,0.25,2995.5,2993.8,0.5728]
[1644889015220,0.00330764,2995.3,2993.8,0.5728]
[1644889015461,0.00330764,2995.3,2993.9,4.49982166]
[1644889015661,0.00330764,2995.3,2993.7,0.82222]
[1644889015662,0.97641213,2994.4,2994.0,0.1168]
[1644889015861,0.00330764,2994.3,2993.8,3.5]
[1644889016064,0.00330764,2995.4,2993.5,4.62027]
[1644889016263,0.00330764,2995.4,2993.5,4.62107]
[1644889016465,0.1668,2995.3,2993.5,4.32227]
[1644889016663,0.00330764,2995.2,2993.5,4.32227]
[1644889016865,0.40930764,2995.2,2993.5,0.82227]
[1644889017063,0.40930764,2995.2,2993.6,3.5]
[1644889017064,1.12728646,2993.8,2993.6,3.5]
[1644889017368,0.001,2993.7,2993.1,2.2686495]
[1644889017563,0.25,2994.7,2993.2,3.5]
[1644889017764,0.0032911,2993.7,2993.3,5.17978827]
[1644889017969,0.0032911,2994.6,2993.3,0.3174]
[1644889018165,0.0032911,2994.6,2993.1,5.7686495]
[1644889018363,0.0032911,2994.6,2993.1,2.2686495]
[1644889018765,1.08062277,2993.6,2993.1,2.2686495]
[1644889018964,0.667,2994.5,2993.8,0.42867358]
[1644889019210,5.5,2994.5,2993.8,0.42867358]
[1644889019410,1.00327464,2994.4,2993.8,0.42867358]
[1644889019613,0.1668,2994.3,2993.8,0.42867358]
[1644889019813,0.00327464,2994.2,2993.8,0.42867358]
[1644889020016,0.12007464,2994.3,2993.9,5.0]
[1644889020312,0.25,2994.7,2994.0,20.02]
[1644889020513,0.00692978,2995.5,2994.0,20.1904]
[1644889020514,0.00324198,2994.2,2994.0,20.1904]
[1644889020714,0.00324198,2994.6,2994.2,20.02]
[1644889020911,0.00324198,2995.3,2994.3,0.04671]
[1644889021112,0.00692978,2995.5,2994.6,20.02]
[1644889021313,0.00322831,2995.8,2994.7,21.02]
[1644889021513,5.08,2998.8,2994.8,5.0]
[1644889021720,33.8389119,3001.1,2994.8,5.0]
[1644889021721,0.01845409,3004.4,2998.8,5.08]
[1644889021913,0.01845409,3004.4,3002.2,5.0]
[1644889021914,1.66926,3003.8,3002.2,5.0]
[1644889022119,0.10639527,3004.6,3002.2,5.0]
[1644889022120,97.32563247,3004.3,3003.7,5.08]
[1644889022323,4.15402,3006.9,3006.8,44.79447933]
[1644889022518,4.79993,3006.9,3003.9,0.01292735]
[1644889022714,4.79993,3006.9,3005.0,0.2758]
[1644889022715,0.17124707,3006.9,3005.0,0.2758]
[1644889022964,2.3228,3008.2,3006.0,0.3195]
[1644889022965,0.00316423,3006.8,3006.0,0.3195]
[1644889023159,1.68328594,3008.2,3006.0,0.3195]
[1644889023160,0.34696017,3008.2,3006.1,0.256]
[1644889023360,0.00314841,3008.1,3006.1,0.206]
[1644889023562,0.00314841,3008.1,3005.6,0.3094]
[1644889023762,0.34696017,3008.2,3006.1,0.2288]
[1644889023763,2.53333116,3007.2,3006.1,0.2288]
[1644889023963,5.4073,3008.0,3005.5,3.07519391]
[1644889023964,5.05,3008.0,3005.5,3.07519391]
[1644889024161,2.42133116,3005.6,3005.5,3.07519391]
[1644889024360,0.00646235,3007.3,3005.0,3.07594842]
[1644889024361,0.25,3006.7,3005.0,3.07594842]
[1644889024561,0.00313266,3005.5,3004.6,3.07573978]
[1644889024760,0.00646235,3007.3,3004.0,1.09262]
[1644889024761,1.11455141,3005.7,3004.1,5.05]
[1644889024962,0.25,3006.3,3004.0,4.07579051]
[1644889025167,0.01488534,3006.6,3004.0,24.09052851]
[1644889025168,0.00646235,3005.2,3004.0,24.09052851]
[1644889025361,0.00646235,3005.2,3004.0,4.20594792]
[1644889025562,0.00646235,3005.2,3004.0,4.07052851]
[1644889025563,0.00278056,3005.1,3004.0,4.07052851]
[1644889025761,0.00646235,3005.2,3004.0,3.07579051]
[1644889025964,0.00646235,3005.2,3003.9,0.81942]
[1644889026162,0.25,3005.9,3003.7,0.48764991]
[1644889026163,0.71369774,3008.7,3004.1,2.11461]
[1644889026463,0.37487194,3009.8,3004.1,2.11461]
[1644889026464,0.5,3010.2,3010.0,0.09639672]
[1644889027017,0.99348302,3011.4,3010.1,0.01260385]
[1644889027220,0.05,3013.3,3011.0,0.01245619]
[1644889027416,0.00305521,3011.3,3011.0,0.69515619]
[1644889027618,0.05,3013.3,3011.2,5.0]
[1644889027822,0.05,3013.3,3011.0,0.94515619]
[1644889027823,0.05,3013.3,3011.0,1.24515619]
[1644889028016,0.05,3013.3,3011.1,10.2158]
[1644889028017,0.017324,3013.3,3011.1,10.2158]
[1644889028215,0.0182072,3011.4,3011.3,5.0]
[1644889028417,0.0182072,3011.4,3011.0,4.41088903]
[1644889028418,7.2e-06,3011.4,3011.0,4.41088903]
[1644889028617,7.2e-06,3011.4,3011.2,0.3]
[1644889028822,22.139347,3011.3,3011.2,1.44593365]
[1644889029117,7.2e-06,3011.4,3011.0,4.34489435]
[1644889029118,7.2e-06,3011.4,3011.1,5.08]
[1644889029316,7.2e-06,3011.4,3011.0,4.30488903]
[1644889029317,34.89288921,3011.3,3011.0,3.75488903]
[1644889029520,0.1722098,3013.3,3011.0,3.75488903]
[1644889029818,5.0,3014.4,3012.5,0.208]
[1644889030019,1.0,3014.8,3013.9,0.01231214]
[1644889030217,0.01818,3015.4,3013.9,0.7158]
[1644889030218,0.87108834,3014.2,3013.9,0.7158]
[1644889030459,0.00300961,3015.0,3013.9,0.7158]
[1644889030460,0.00299456,3014.7,3013.9,0.7158]
[1644889030657,0.00299456,3014.2,3013.9,0.7158]
[1644889030864,0.001174,3016.1,3014.2,3.2]
[1644889031058,0.01671784,3017.5,3014.1,0.01225252]
[1644889031059,1.25893653,3015.3,3014.1,0.01225252]
[1644889031257,0.94752527,3015.6,3014.1,1.01225252]
[1644889031460,0.00296469,3015.2,3014.8,0.01249441]
[1644889031663,0.018508,3016.8,3014.6,1.04052261]
[1644889031859,0.33713248,3014.6,3014.3,4.06998537]
[1644889032057,1.25893653,3016.2,3014.6,1.0]
[1644889032263,0.018508,3016.8,3014.6,1.0]
[1644889032264,0.029578,3014.7,3014.6,1.0]
[1644889032460,0.03422924,3014.7,3014.5,1.0]
[1644889032757,1.29316577,3014.7,3014.5,6.61303171]
[1644889032959,1.29316577,3014.7,3014.5,3.5]
[1644889032960,100.0,3014.6,3014.5,3.5]
[1644889033158,1.29611564,3014.7,3014.5,3.5]
[1644889033159,0.03717911,3014.7,3014.5,3.5]
[1644889033458,1.25893653,3015.4,3014.5,3.493]
[1644889033459,81.21042294,3014.6,3014.5,3.493]
[1644889033657,0.0179891,3016.7,3014.5,3.493]
[1644889033658,1.25893653,3016.6,3014.6,0.7]
[1644889033857,0.00330556,3016.2,3016.0,0.01233504]
[1644889034106,1.25893653,3016.2,3016.1,0.01295367]
[1644889034306,0.00393512,3016.2,3016.1,0.01295367]
[1644889034510,0.0179891,3016.7,3016.1,0.48756567]
[1644889034705,0.0179891,3016.7,3015.8,0.7158]
[1644889034910,0.0179891,3016.7,3015.7,0.0007695]
[1644889034911,5.15,3016.6,3015.7,0.0007695]
[1644889035107,0.001,3016.5,3014.8,5.0]
[1644889035309,0.00393512,3016.5,3014.9,0.474612]
[1644889035517,0.9032555,3015.6,3015.0,3.19882]
[1644889035711,0.01742252,3015.4,3014.3,0.2982]
[1644889035910,0.01742252,3015.4,3014.4,0.474612]
[1644889036110,0.01742252,3015.4,3014.4,0.51543237]
[1644889036310,2.252e-05,3015.4,3015.1,5.0]
[1644889036509,5.705e-05,3015.2,3015.1,0.84926685]
[1644889036708,5.705e-05,3015.2,3015.1,1.29971989]
[1644889037111,5.705e-05,3015.2,3014.3,0.2982]
[1644889037311,5.705e-05,3015.2,3015.1,102.691396]
[1644889037610,0.04194558,3015.4,3014.7,87.21893577]
[1644889037866,0.04194558,3015.4,3014.4,0.1658]
[1644889037867,0.03901046,3015.4,3014.4,0.1658]
[1644889038067,0.03901046,3015.4,3014.8,86.17206537]
[1644889038266,0.05487078,3015.2,3014.9,0.1658]
[1644889038464,0.05487078,3015.2,3014.9,86.159795]
[1644889038666,0.05487078,3015.2,3014.9,82.96215468]
[1644889038667,0.03901046,3015.2,3014.9,82.96215468]
[1644889038865,0.03901046,3015.2,3014.3,0.34711696]
[1644889039065,0.88291253,3014.8,3014.3,0.2982]
[1644889039268,0.00293512,3014.7,3014.3,0.2982]
[1644889039467,0.00293512,3014.7,3014.4,82.121748]
[1644889039666,1.17635015,3014.1,3013.4,3.07083338]
[1644889039869,1.01108906,3013.6,3012.9,0.1658]
[1644889040067,4.75443512,3014.0,3013.7,5.904e-05]
[1644889040068,4.7005,3014.0,3013.7,5.904e-05]
[1644889040270,10.93497926,3014.3,3013.1,0.75107522]
[1644889040468,0.00293512,3013.9,3012.3,0.5]
[1644889040672,0.1658,3014.2,3012.3,0.5]
[1644889040673,0.16873512,3014.2,3012.3,0.5]
[1644889040870,0.00293512,3014.2,3013.7,5.0]
[1644889041169,0.05127206,3014.3,3014.1,0.01212209]
[1644889041170,0.05141508,3014.3,3014.1,0.01212209]
[1644889041373,0.05141508,3014.3,3014.2,0.01240983]
[1644889041607,0.05141508,3014.3,3013.3,0.01222233]
[1644889041825,1.364149,3014.2,3012.6,5.0]
[1644889042007,1.364149,3014.2,3012.7,5.0]
[1644889042008,0.00293512,3014.1,3012.7,5.0]
[1644889042205,0.00293512,3014.1,3012.7,35.4703]
[1644889042407,0.00293512,3014.1,3010.9,5.04436833]
[1644889042408,0.5718,3014.0,3010.9,5.04436833]
[1644889042705,2.68791512,3013.9,3011.0,95.2]
[1644889042906,15.0,3013.5,3011.0,95.2]
[1644889043104,1.13528691,3011.8,3011.2,5.0]
[1644889043308,0.00293512,3011.7,3011.3,5.0]
[1644889043507,0.00142715,3011.7,3010.1,0.166]
[1644889043704,0.00142715,3011.7,3011.4,100.0]
[1644889043705,2.715e-05,3011.7,3011.4,100.0]
[1644889043905,5.748e-05,3011.8,3010.2,100.0]
[1644889044104,5.748e-05,3011.8,3010.8,0.01230419]
[1644889044306,5.748e-05,3011.8,3011.7,5.0]
[1644889044707,0.166,3013.2,3012.0,5.15]
[1644889045006,0.1658,3014.1,3013.1,0.01216003]
[1644889045207,7.52e-06,3013.7,3013.1,0.01216003]
[1644889045455,0.92740292,3013.4,3013.1,0.01216003]
[1644889045661,0.92740292,3013.4,3011.9,0.00074252]
[1644889045864,0.92740292,3013.4,3013.2,19.365892]
[1644889045865,0.00290584,3013.3,3013.2,19.365892]
[1644889046055,0.00290584,3013.3,3011.9,0.00074252]
[1644889046056,0.00290584,3013.3,3012.0,48.247266]
[1644889046355,0.00290584,3013.3,3011.9,0.00074252]
[1644889046356,0.406,3013.2,3011.9,0.00074252]
[1644889046561,0.00290584,3013.1,3012.1,38.405595]
[1644889046755,0.00290584,3013.1,3011.9,0.00074252]
[1644889046756,0.406,3013.0,3012.0,27.644349]
[1644889046955,0.00290584,3012.9,3012.2,32.006131]
[1644889047155,0.01838,3012.8,3012.1,29.679195]
[1644889047357,0.01838,3012.8,3011.9,0.00074252]
[1644889047359,1.21558,3012.8,3011.9,0.00074252]
[1644889047557,1.21558,3012.8,3010.2,0.8298]
[1644889047558,5.557,3012.7,3010.2,0.8298]
[1644889047755,5.557,3012.7,3009.1,0.2301025]
[1644889047756,0.02228584,3012.6,3009.1,0.166]
[1644889047955,15.406,3012.5,3008.8,0.166]
[1644889048157,15.406,3012.5,3009.4,1.09478]
[1644889048158,15.01263326,3012.1,3009.4,1.09478]
[1644889048363,15.01263326,3012.1,3008.7,0.166]
[1644889048364,0.2194,3010.0,3008.7,0.166]
[1644889048556,0.2194,3010.0,3008.6,0.3477]
[1644889048557,0.00290584,3009.9,3008.6,0.3477]
[1644889048759,0.406,3009.8,3008.8,27.370658]
[1644889048955,0.00290584,3009.7,3008.7,95.571731]
[1644889049217,0.001,3009.9,3008.6,0.01285918]
[1644889049515,0.1661,3010.5,3008.7,58.166441]
[1644889049516,0.93889567,3009.7,3008.7,58.166441]
[1644889049721,0.93600433,3009.7,3008.7,68.026935]
[1644889049916,5.15,3009.5,3007.8,0.01260416]
[1644889050117,5.15,3009.5,3007.6,0.13817282]
[1644889050118,5.15,3009.3,3007.6,3.5]
[1644889050324,5.556,3009.5,3007.9,65.895368]
[1644889050325,0.57599134,3009.2,3007.9,65.895368]
[1644889050517,0.406,3009.1,3007.2,0.03470776]
[1644889050715,0.406,3009.1,3008.0,25.572083]
[1644889050716,0.1661,3009.0,3008.0,25.572083]
[1644889050918,0.1661,3009.0,3007.3,41.072771]
[1644889050919,0.40889134,3008.9,3007.3,41.072771]
[1644889051118,1.17631555,3007.1,3006.2,1.16309326]
[1644889051327,1.17631555,3007.1,3005.7,0.01263864]
[1644889051328,0.00389134,3007.0,3005.7,0.01263864]
[1644889051524,1.2539,3008.9,3006.3,50.273095]
[1644889051525,0.3573,3007.1,3006.3,50.273095]
[1644889051720,0.3573,3007.1,3003.8,0.04774029]
[1644889051721,2.95,3007.1,3005.0,5.0]
[1644889051919,0.3018,3006.7,3006.4,66.721444]
[1644889052118,0.3451,3006.5,3004.4,0.17917184]
[1644889052321,0.85885964,3005.7,3004.4,1.19697]
[1644889052520,0.85885964,3005.7,3004.5,0.04320018]
[1644889052719,0.00289134,3005.6,3004.4,0.90005135]
[1644889052987,0.16919134,3006.0,3004.4,0.90005135]
[1644889053186,0.16919134,3006.0,3004.4,0.80005135]
[1644889053187,0.3888,3005.6,3004.4,0.80005135]
[1644889053391,0.3888,3005.6,3003.9,3.46520634]
[1644889053587,0.00289134,3005.5,3003.9,0.1663]
[1644889053786,0.00289134,3006.2,3004.8,0.00935812]
[1644889053984,0.3888,3005.6,3004.3,1.0441567]
[1644889054184,0.00289134,3005.5,3004.3,1.0441567]
[1644889054608,0.3888,3005.6,3004.8,4.6112]
[1644889054785,0.3888,3005.6,3004.5,4.6112]
[1644889054986,0.3888,3005.6,3004.3,1.0441567]
[1644889054987,0.00289134,3005.5,3003.8,0.27637279]
[1644889055186,0.00289134,3005.5,3004.1,4.6112]
[1644889055385,0.00289134,3005.5,3003.8,0.27637279]
[1644889055885,0.3888,3004.7,3003.8,0.27637279]
[1644889056088,0.25,3005.5,3004.7,0.03159301]
[1644889056286,0.5723,3005.6,3004.7,0.03159301]
[1644889056496,0.5723,3005.6,3004.8,88.787445]
[1644889056497,0.00287688,3005.4,3004.8,88.787445]
[1644889056709,0.5723,3005.3,3004.7,0.03159301]
[1644889056909,1.50287688,3005.2,3004.9,41.258025]
[1644889057108,1.50287688,3005.2,3004.8,33.446014]
[1644889057109,0.75771177,3005.1,3004.8,33.446014]
[1644889057313,0.75771177,3005.1,3004.7,0.03159301]
[1644889057314,0.00287688,3005.0,3004.7,0.03159301]
[1644889057909,0.00287688,3005.0,3004.8,24.094869]
[1644889058110,0.00287688,3005.0,3004.8,23.884997]
[1644889058311,1.5,3005.2,3004.9,28.356404]
[1644889058510,1.4,3005.2,3005.0,3.5]
[1644889058713,1.4,3005.2,3005.0,49.076537]
[1644889058714,0.00640453,3005.1,3005.0,49.076537]
[1644889058908,0.00640453,3005.1,3005.0,41.986774]
[1644889059109,0.00640453,3005.1,3004.7,0.03159301]
[1644889059709,1.40284888,3005.2,3004.8,2.059253]
[1644889059911,1.40284888,3005.2,3004.7,0.03159301]
[1644889060111,0.406,3006.3,3005.2,0.10207298]
[1644889060578,0.00283464,3006.2,3005.2,5.10207298]
[1644889060772,0.00283464,3006.2,3005.8,5.0]
[1644889060973,0.00283464,3006.7,3005.2,0.10207298]
[1644889061273,0.00283464,3006.7,3005.2,3.47155388]
[1644889061274,0.94791305,3006.7,3005.2,3.47155388]
[1644889061473,0.94891305,3006.7,3005.2,3.47155388]
[1644889061674,0.94891305,3006.7,3005.2,3.25936024]
[1644889061873,0.94891305,3006.7,3005.2,5.10207298]
[1644889062073,0.94891305,3006.7,3005.3,3.12240559]
[1644889062074,61.398978,3006.6,3005.3,3.12240559]
[1644889062274,0.00383464,3006.5,3005.3,3.12240559]
[1644889062475,61.398978,3006.6,3006.4,5.0]
[1644889062476,38.99025797,3006.6,3006.4,5.0]
[1644889062684,0.2172,3006.8,3006.5,3.29104477]
[1644889062878,0.83597,3007.3,3006.7,5.01272916]
[1644889063073,3.5,3008.8,3006.7,0.01272916]
[1644889063274,0.3157,3009.0,3008.6,5.0]
[1644889063474,0.3157,3009.0,3006.9,5.0]
[1644889063475,19.94213804,3007.1,3007.0,0.04712172]
[1644889063681,6.548917,3008.9,3007.2,0.01215394]
[1644889063878,0.083,3010.5,3008.7,5.0]
[1644889064118,1.75494,3010.5,3010.3,0.89406931]
[1644889064320,95.993415,3010.4,3009.5,0.2497]
[1644889064515,0.00275086,3010.3,3009.5,0.2497]
[1644889064715,0.02252915,3011.4,3009.8,5.0]
[1644889064913,0.02252915,3011.4,3009.6,0.1661]
[1644889064914,100.0,3010.2,3009.6,3.6661]
[1644889065115,0.0027371,3010.1,3009.6,0.1661]
[1644889065313,0.02252915,3011.4,3009.6,0.1661]
[1644889065514,0.02252915,3011.4,3009.1,24.7628439]
[1644889065515,100.0,3010.0,3009.1,3.54287497]
[1644889065715,5.2,3009.9,3008.1,3.5]
[1644889065916,0.0027371,3009.9,3008.1,3.5]
[1644889066214,100.0,3009.8,3008.1,3.5]
[1644889066420,1.13767755,3008.4,3008.1,3.5]
[1644889066617,1.13767755,3008.4,3007.7,0.1256]
[1644889066829,38.1765861,3008.3,3006.9,0.1488]
[1644889067017,22.956446,3008.3,3006.4,3.72199473]
[1644889067215,5.25,3009.3,3006.5,0.3294]
[1644889067216,0.0027371,3008.2,3006.5,0.3294]
[1644889067416,0.01277941,3008.7,3006.5,0.3166]
[1644889067417,5.0,3008.6,3006.5,0.3166]
[1644889067619,0.01277941,3008.7,3006.6,0.1416]
[1644889067620,0.001,3008.5,3006.6,0.1416]
[1644889067857,0.001,3008.5,3006.6,0.14]
[1644889067858,1.00845754,3007.4,3006.6,0.14]
[1644889068060,1.00845754,3007.4,3006.3,3.6661]
[1644889068061,0.001,3007.3,3006.4,0.1424]
[1644889068258,0.001,3007.3,3006.4,0.1344]
[1644889068259,0.0037371,3007.3,3006.4,0.1344]
[1644889068461,0.0027371,3007.8,3006.4,1.662365]
[1644889068660,0.0027371,3008.0,3006.5,3.6661]
[1644889068858,0.001,3008.8,3007.4,0.00865612]
[1644889068859,0.0037371,3008.8,3007.4,0.00865612]
[1644889069062,0.0037371,3008.8,3006.5,3.29328581]
[1644889069063,5.2,3008.4,3006.5,3.29328581]
[1644889069259,5.2,3008.4,3006.0,3.5]
[1644889069260,0.86120212,3006.8,3006.0,3.5]
[1644889069460,0.0037371,3008.3,3005.9,4.3327]